bitfinex-derivatives/quotes_BNBF0:USTF0_20251002
["timestamp","ask_amount","ask_price","bid_price","bid_amount"]
[1759448209618,0.15976311,1089.8,1087.4,0.61051159]
[1759448212017,0.784,1089.7,1087.4,0.61051159]
[1759448215019,0.784,1089.7,1087.3,0.61051159]
[1759448215523,0.784,1089.7,1087.4,0.61051159]
[1759448216920,0.784,1089.7,1087.5,0.61051159]
[1759448217223,0.784,1089.7,1087.7,0.61051159]
[1759448217823,0.784,1089.7,1087.8,0.61051159]
[1759448223328,0.784,1089.7,1087.9,0.61051159]
[1759448226233,0.784,1089.7,1087.7,0.61051159]
[1759448226434,1.60454831,1089.7,1087.7,0.61051159]
[1759448230235,0.82054831,1089.6,1087.7,0.61051159]
[1759448230432,1.60454831,1089.7,1087.7,0.61051159]
[1759448232935,1.60454831,1089.7,1087.8,0.61051159]
[1759448236241,1.60454831,1089.7,1087.7,0.61051159]
[1759448236541,0.82054831,1089.6,1087.8,0.61051159]
[1759448237142,0.82054831,1089.6,1087.7,0.61051159]
[1759448237439,0.82054831,1089.4,1087.6,0.61051159]
[1759448237939,0.82054831,1089.1,1087.6,0.61051159]
[1759448238143,0.82054831,1089.1,1087.5,0.61051159]
[1759448238442,0.82054831,1089.1,1087.3,0.61051159]
[1759448238642,0.82054831,1088.9,1087.4,0.61051159]
[1759448238844,0.82054831,1089.1,1087.5,0.61051159]
[1759448240344,0.784,1089.7,1088.0,0.61051159]
[1759448241642,1.60454831,1089.7,1088.0,0.61051159]
[1759448242248,0.82054831,1089.5,1087.8,0.61051159]
[1759448242746,0.82054831,1089.6,1087.8,0.61051159]
[1759448243444,0.82054831,1089.5,1087.8,0.61051159]
[1759448244143,0.82054831,1089.5,1087.7,0.61051159]
[1759448244646,0.82054831,1089.5,1087.8,0.61051159]
[1759448245544,0.82054831,1089.5,1087.7,0.61051159]
[1759448245747,0.82054831,1089.3,1087.3,0.61051159]
[1759448245946,0.82054831,1089.3,1087.0,0.8101592]
[1759448245947,0.82054831,1089.3,1087.4,0.61051159]
[1759448246351,0.82054831,1089.3,1087.3,0.61051159]
[1759448246852,0.82054831,1088.5,1087.0,0.61051159]
[1759448247452,0.82054831,1088.6,1086.9,0.61051159]
[1759448250256,0.82054831,1088.7,1086.8,0.61051159]
[1759448251356,0.82054831,1088.8,1086.8,0.61051159]
[1759448251653,0.82054831,1088.7,1086.8,0.61051159]
[1759448252356,0.82054831,1088.8,1086.8,0.61051159]
[1759448252656,0.82054831,1088.9,1086.8,0.61051159]
[1759448252952,0.82054831,1088.8,1086.8,0.61051159]
[1759448253353,0.767,1088.7,1086.7,0.61051159]
[1759448255259,0.767,1088.7,1086.5,0.61051159]
[1759448257461,0.767,1088.7,1086.7,0.61051159]
[1759448261456,0.767,1088.7,1085.7,0.15995624]
[1759448261457,0.767,1088.7,1086.6,0.61051159]
[1759448261859,0.767,1088.7,1086.7,0.61051159]
[1759448262059,0.767,1088.7,1086.6,0.61051159]
[1759448262362,0.767,1088.7,1086.7,0.61051159]
[1759448262565,0.767,1088.7,1086.6,0.61051159]
[1759448262760,0.767,1088.7,1086.7,0.61051159]
[1759448262967,0.767,1088.7,1086.6,0.61051159]
[1759448264367,0.767,1088.7,1086.5,0.61051159]
[1759448270268,0.767,1088.7,1086.6,0.61051159]
[1759448270475,0.767,1088.7,1086.5,0.61051159]
[1759448270770,0.767,1088.7,1086.8,0.61051159]
[1759448272775,0.767,1088.7,1087.0,0.61051159]
[1759448272973,0.767,1088.7,1087.1,0.61051159]
[1759448273171,0.767,1088.7,1087.0,0.61051159]
[1759448274076,0.767,1088.7,1086.9,0.61051159]
[1759448274778,0.767,1088.7,1087.0,0.61051159]
[1759448275379,0.767,1088.7,1086.9,0.61051159]
[1759448283984,0.767,1088.7,1086.9,0.61319182]
[1759448287487,0.82054831,1089.1,1086.9,0.61319182]
[1759448288485,0.82054831,1089.2,1086.9,0.61319182]
[1759448289289,0.82054831,1089.1,1086.9,0.61319182]
[1759448289892,0.82054831,1089.2,1086.9,0.61319182]
[1759448290392,0.705,1089.1,1086.9,0.61319182]
[1759448290789,1.52554831,1089.1,1086.8,0.61319182]
[1759448292292,0.82054831,1089.0,1086.8,0.61319182]
[1759448293192,0.82054831,1088.8,1086.9,0.61319182]
[1759448293388,0.82054831,1088.7,1086.9,0.61319182]
[1759448296396,0.82054831,1088.9,1086.8,0.61319182]
[1759448300697,0.82054831,1088.7,1086.9,0.61319182]
[1759448300898,0.82054831,1088.8,1086.9,0.61319182]
[1759448301398,0.82054831,1088.7,1087.0,0.61319182]
[1759448302295,0.82054831,1088.6,1087.0,0.61319182]
[1759448302499,0.82054831,1088.7,1087.0,0.61319182]
[1759448303398,0.82054831,1088.6,1087.1,0.61319182]
[1759448305500,0.82054831,1088.6,1087.2,0.61319182]
[1759448307500,0.82054831,1088.7,1087.2,0.61319182]
[1759448307700,0.82054831,1088.7,1087.3,0.61319182]
[1759448309105,0.82054831,1088.7,1087.4,0.61319182]
[1759448311705,0.82054831,1088.8,1087.5,0.61319182]
[1759448315909,0.82054831,1088.9,1087.6,0.61319182]
[1759448316106,0.82054831,1089.0,1087.6,0.61319182]
[1759448317412,1.52554831,1089.1,1087.5,0.61319182]
[1759448317613,0.705,1089.1,1087.7,0.61319182]
[1759448318113,0.705,1089.1,1087.6,0.61319182]
[1759448321310,0.705,1089.1,1087.4,0.61319182]
[1759448323015,0.705,1089.1,1087.5,0.61319182]
[1759448324915,1.52554831,1089.1,1087.4,0.61319182]
[1759448325120,0.82054831,1088.9,1087.4,0.61319182]
[1759448326918,0.82054831,1088.8,1087.4,0.61319182]
[1759448328923,0.82054831,1088.8,1087.3,0.61319182]
[1759448330027,0.82054831,1088.9,1087.3,0.61319182]
[1759448330828,1.93582247,1089.1,1087.2,0.61319182]
[1759448330829,0.82054831,1089.0,1087.2,0.61319182]
[1759448335032,0.82054831,1088.9,1087.2,0.61319182]
[1759448336334,0.82054831,1088.7,1087.2,0.61319182]
[1759448340935,0.82054831,1088.7,1087.2,0.61691125]
[1759448341534,0.82054831,1088.6,1087.2,0.61691125]
[1759448344141,0.82054831,1088.7,1087.1,0.61691125]
[1759448344341,0.82054831,1088.6,1087.0,0.61691125]
[1759448346937,1.71454831,1088.5,1087.0,0.61691125]
[1759448347639,1.71454831,1088.5,1086.7,0.61691125]
[1759448347837,0.82054831,1088.4,1086.7,0.61691125]
[1759448348443,1.71454831,1088.5,1086.7,0.61691125]
[1759448350340,0.894,1088.5,1086.7,0.61691125]
[1759448352345,0.894,1088.5,1086.6,0.61691125]
[1759448352641,0.894,1088.5,1086.7,0.61691125]
[1759448354342,0.894,1088.5,1086.6,0.61691125]
[1759448356846,1.71454831,1088.5,1086.7,0.61691125]
[1759448358547,0.894,1088.5,1086.6,0.61691125]
[1759448362044,1.71454831,1088.5,1086.6,0.61691125]
[1759448362948,0.894,1088.5,1086.6,0.61691125]
[1759448366151,0.894,1088.5,1086.7,0.61691125]
[1759448366348,0.894,1088.5,1086.8,0.61691125]
[1759448366653,0.894,1088.5,1086.9,0.61691125]
[1759448367253,0.894,1088.5,1086.8,0.61691125]
[1759448368551,0.894,1088.5,1086.5,0.61691125]
[1759448370955,0.894,1088.5,1086.7,0.61691125]
[1759448371455,0.894,1088.5,1086.8,0.61691125]
[1759448372359,0.894,1088.5,1086.9,0.61691125]
[1759448377561,0.894,1088.5,1086.5,1.2152388]
[1759448377562,0.894,1088.5,1086.8,0.61691125]
[1759448382565,0.894,1088.5,1086.9,0.61691125]
[1759448383167,1.71454831,1088.5,1086.9,0.61691125]
[1759448384569,1.71454831,1088.5,1087.0,0.61691125]
[1759448385070,0.894,1088.5,1086.9,0.61691125]
[1759448386166,1.71454831,1088.5,1087.0,0.61691125]
[1759448388770,0.894,1088.5,1086.9,0.61691125]
[1759448389175,1.71454831,1088.5,1086.9,0.61691125]
[1759448389676,0.894,1088.5,1086.9,0.61691125]
[1759448389871,1.71454831,1088.5,1087.0,0.61691125]
[1759448394276,0.82054831,1088.4,1087.0,0.61691125]
[1759448396877,0.15994815,1088.1,1087.0,0.61691125]
[1759448397176,0.15994815,1088.1,1087.1,0.61691125]
[1759448400680,0.15994815,1088.1,1087.0,0.61691125]
[1759448401579,0.15994815,1088.1,1086.9,0.61691125]
[1759448401881,1.062,1088.0,1086.9,0.61691125]
[1759448402979,1.062,1088.0,1087.0,0.61691125]
[1759448405384,1.062,1088.0,1087.1,0.61691125]
[1759448408283,1.062,1088.0,1087.2,0.61691125]
[1759448412590,1.062,1088.0,1087.1,0.61691125]
[1759448413291,1.062,1088.0,1087.0,0.61691125]
[1759448418092,1.062,1088.0,1087.1,0.61691125]
[1759448422401,1.062,1088.0,1087.0,0.61691125]
[1759448431217,1.062,1088.0,1087.1,0.61691125]
[1759448431914,1.062,1088.0,1087.0,0.61691125]
[1759448433916,1.062,1088.0,1087.1,0.61691125]
[1759448434719,1.062,1088.0,1087.0,0.61691125]
[1759448435019,1.062,1088.0,1087.1,0.61691125]
[1759448438517,1.062,1088.0,1087.2,0.61691125]
[1759448438717,1.062,1088.0,1087.4,0.61691125]
[1759448440319,1.062,1088.0,1087.2,0.61691125]
[1759448448028,0.15994742,1088.3,1087.2,0.61691125]
[1759448449825,0.15994742,1088.3,1087.1,0.61691125]
[1759448451332,1.113,1088.2,1087.1,0.61691125]
[1759448454030,1.113,1088.2,1087.2,0.61691125]
[1759448454227,1.113,1088.2,1087.1,0.61691125]
[1759448454634,1.113,1088.2,1087.2,0.61691125]
[1759448456832,1.113,1088.2,1087.1,0.61691125]
[1759448457735,1.113,1088.2,1087.0,0.61691125]
[1759448459835,0.82054831,1088.1,1087.0,0.61691125]
[1759448460138,1.93354831,1088.2,1087.0,0.61691125]
[1759448461841,1.113,1088.2,1087.0,0.61691125]
[1759448462242,0.98049573,1088.3,1087.0,0.61691125]
[1759448464641,1.056,1088.2,1087.0,0.61691125]
[1759448466539,0.82054831,1088.1,1087.0,0.61691125]
[1759448466744,0.82054831,1088.1,1086.9,0.61691125]
[1759448467145,0.82054831,1088.0,1086.9,0.61691125]
[1759448471042,0.82054831,1088.1,1086.9,0.61691125]
[1759448471940,0.82054831,1088.1,1086.6,0.8101592]
[1759448471941,0.82054831,1088.1,1086.8,0.61691125]
[1759448475147,1.87654831,1088.2,1086.8,0.61691125]
[1759448475548,0.82054831,1088.1,1086.8,0.61691125]
[1759448480351,1.87654831,1088.2,1086.8,0.61691125]
[1759448485455,1.056,1088.2,1086.6,0.61691125]
[1759448490957,1.056,1088.2,1086.2,0.8101592]
[1759448490958,1.056,1088.2,1086.5,0.61691125]
[1759448493555,1.87654831,1088.2,1087.0,0.61691125]
[1759448493858,1.056,1088.2,1086.9,0.61691125]
[1759448494957,1.056,1088.2,1087.0,0.61691125]
[1759448496060,1.056,1088.2,1087.1,0.61691125]
[1759448496357,1.056,1088.2,1087.2,0.61691125]
[1759448496758,1.056,1088.2,1087.1,0.61691125]
[1759448497058,1.056,1088.2,1087.0,0.61691125]
[1759448497461,1.056,1088.2,1087.1,0.61691125]
[1759448499662,0.15994742,1088.3,1087.1,0.61691125]
[1759448501861,0.15994742,1088.3,1087.0,0.61691125]
[1759448502263,0.15994742,1088.3,1087.1,0.61691125]
[1759448502457,0.769,1088.2,1087.0,0.61691125]
[1759448504659,0.769,1088.2,1086.8,0.61691125]
[1759448508161,0.769,1088.2,1086.9,0.61691125]
[1759448512472,0.769,1088.2,1087.0,0.61691125]
[1759448512672,1.58954831,1088.2,1086.8,0.61691125]
[1759448513868,0.769,1088.2,1086.8,0.61691125]
[1759448514572,0.769,1088.2,1086.7,0.61691125]
[1759448516073,0.769,1088.2,1086.8,0.61691125]
[1759448516971,0.769,1088.2,1086.7,0.61691125]
[1759448518978,0.769,1088.2,1086.5,0.61691125]
[1759448520580,0.769,1088.2,1086.6,0.61691125]
[1759448522481,0.769,1088.2,1086.7,0.61691125]
[1759448525482,1.58954831,1088.2,1086.8,0.61691125]
[1759448526178,0.82054831,1088.1,1086.8,0.61691125]
[1759448526790,1.58954831,1088.2,1086.8,0.61691125]
[1759448528885,0.769,1088.2,1086.7,0.61691125]
[1759448532787,0.769,1088.2,1087.2,0.61691125]
[1759448532987,0.769,1088.2,1087.3,0.61691125]
[1759448535187,0.769,1088.2,1087.4,0.61691125]
[1759448536185,0.769,1088.2,1087.5,0.61691125]
[1759448536389,0.769,1088.2,1087.3,0.61691125]
[1759448536890,0.769,1088.2,1085.5,0.1599886]
[1759448536891,0.769,1088.2,1087.2,0.61691125]
[1759448538591,0.769,1088.2,1087.3,0.61691125]
[1759448539887,0.769,1088.2,1087.4,0.61691125]
[1759448540404,0.769,1088.2,1087.3,0.61691125]
[1759448541493,0.769,1088.2,1087.2,0.61691125]
[1759448542595,0.15991288,1088.6,1087.2,0.61691125]
[1759448542892,0.15991288,1088.6,1087.1,0.61691125]
[1759448546492,0.847,1088.5,1087.1,0.61691125]
[1759448547997,0.847,1088.5,1087.2,0.61691125]
[1759448549094,0.847,1088.5,1087.0,0.61691125]
[1759448549396,0.847,1088.5,1087.1,0.61691125]
[1759448549596,0.847,1088.5,1086.8,0.8101592]
[1759448549597,0.847,1088.5,1087.0,0.61691125]
[1759448551197,0.847,1088.5,1087.1,0.61691125]
[1759448551798,0.847,1088.5,1087.0,0.61691125]
[1759448555798,0.847,1088.5,1086.9,0.61691125]
[1759448556002,0.847,1088.5,1086.6,0.8101592]
[1759448556003,0.847,1088.5,1086.8,0.61691125]
[1759448556605,0.847,1088.5,1086.9,0.61691125]
[1759448556606,1.66754831,1088.5,1086.9,0.61691125]
[1759448557205,0.847,1088.5,1086.9,0.61691125]
[1759448557607,1.66754831,1088.5,1086.9,0.61691125]
[1759448558207,0.847,1088.5,1086.8,0.61691125]
[1759448559410,0.847,1088.5,1086.9,0.61691125]
[1759448560009,0.847,1088.5,1086.8,0.61691125]
[1759448561905,0.847,1088.5,1086.1,1.2152388]
[1759448561906,0.847,1088.5,1086.9,0.61691125]
[1759448562610,0.847,1088.5,1087.0,0.61691125]
[1759448562807,0.847,1088.5,1087.1,0.61691125]
[1759448563908,0.847,1088.5,1087.2,0.61691125]
[1759448567821,0.847,1088.5,1087.3,0.61691125]
[1759448568022,0.847,1088.5,1087.0,0.8101592]
[1759448568023,0.847,1088.5,1087.4,0.61691125]
[1759448568521,0.847,1088.5,1087.5,0.61691125]
[1759448568719,0.847,1088.5,1087.6,0.61691125]
[1759448570322,0.847,1088.5,1087.5,0.61691125]
[1759448574029,0.847,1088.5,1087.6,0.61691125]
[1759448577231,0.847,1088.5,1087.7,0.61691125]
[1759448577426,0.847,1088.5,1087.6,0.61691125]
[1759448578131,0.847,1088.5,1087.7,0.61691125]
[1759448578430,0.847,1088.5,1087.6,0.61691125]
[1759448583632,0.847,1088.5,1087.7,0.61691125]
[1759448585633,0.847,1088.5,1087.6,0.61691125]
[1759448591541,0.15985411,1089.1,1087.6,0.61691125]
[1759448591942,0.15985411,1089.1,1087.5,0.61691125]
[1759448593438,0.15985411,1089.1,1087.6,0.61691125]
[1759448594238,0.15985411,1089.1,1087.5,0.61691125]
[1759448594437,1.005,1089.0,1087.5,0.61691125]
[1759448594842,1.005,1089.0,1087.6,0.61691125]
[1759448599342,1.005,1089.0,1087.5,0.61691125]
[1759448600748,1.005,1089.0,1087.4,0.61691125]
[1759448601041,1.005,1089.0,1087.3,0.61691125]
[1759448601947,1.005,1089.0,1087.2,0.61691125]
[1759448615155,1.82554831,1089.0,1087.2,0.61691125]
[1759448619260,0.82054831,1088.9,1087.2,0.61691125]
[1759448621760,1.82554831,1089.0,1087.2,0.61691125]
[1759448623657,1.82554831,1089.0,1087.1,0.61691125]
[1759448626865,1.005,1089.0,1087.1,0.61691125]
[1759448636263,1.82554831,1089.0,1087.1,0.61691125]
[1759448636869,1.005,1089.0,1087.1,0.61691125]
[1759448637067,1.82554831,1089.0,1087.1,0.61691125]
[1759448637767,0.82054831,1088.9,1087.0,0.61691125]
[1759448639271,0.82054831,1088.8,1087.0,0.61691125]
[1759448639473,0.82054831,1088.7,1087.0,0.61691125]
[1759448641776,0.82054831,1088.8,1086.9,0.61691125]
[1759448643876,0.82054831,1088.7,1086.9,0.61691125]
[1759448645472,0.82054831,1088.8,1086.9,0.61691125]
[1759448646277,0.82054831,1088.7,1086.9,0.61691125]
[1759448646477,0.82054831,1088.8,1086.9,0.61691125]
[1759448646679,0.82054831,1088.8,1086.8,0.61691125]
[1759448649178,0.82054831,1088.8,1086.9,0.61691125]
[1759448649677,0.787,1088.7,1086.9,0.61691125]
[1759448649876,0.787,1088.7,1086.8,0.61691125]
[1759448650277,0.787,1088.7,1086.9,0.61691125]
[1759448655186,1.60754831,1088.7,1086.9,0.61691125]
[1759448656691,0.82054831,1088.6,1086.9,0.61691125]
[1759448656890,1.60754831,1088.7,1086.9,0.61691125]
[1759448657089,0.787,1088.7,1087.0,0.61691125]
[1759448658292,1.60754831,1088.7,1087.1,0.61691125]
[1759448660594,0.787,1088.7,1087.1,0.61691125]
[1759448664496,0.82054831,1088.6,1087.3,0.61691125]
[1759448664696,0.787,1088.7,1087.3,0.61691125]
[1759448667600,0.82054831,1088.9,1087.3,0.61691125]
[1759448668600,0.15985411,1089.1,1087.3,0.61691125]
[1759448668601,0.82054831,1089.0,1087.3,0.61691125]
[1759448670300,0.82054831,1088.9,1087.5,0.61691125]
[1759448670500,1.39067658,1089.1,1087.7,0.61691125]
[1759448670501,0.82054831,1089.0,1087.7,0.61691125]
[1759448670704,0.754,1088.8,1087.7,0.61691125]
[1759448671801,0.754,1088.8,1087.8,0.61691125]
[1759448676301,0.754,1088.8,1087.7,0.61691125]
[1759448677205,0.754,1088.8,1087.5,0.8101592]
[1759448677206,0.754,1088.8,1087.8,0.61691125]
[1759448680205,0.754,1088.8,1087.7,0.61691125]
[1759448681709,0.754,1088.8,1087.8,0.61691125]
[1759448681910,0.754,1088.8,1087.9,0.61691125]
[1759448682509,0.754,1088.8,1087.8,0.61691125]
[1759448686808,0.754,1088.8,1087.7,0.61691125]
[1759448688510,0.754,1088.8,1087.6,0.61691125]
[1759448697721,0.754,1088.8,1087.7,0.61691125]
[1759448697916,0.754,1088.8,1087.8,0.61691125]
[1759448698922,0.754,1088.8,1087.7,0.61691125]
[1759448699821,0.754,1088.8,1087.8,0.61691125]
[1759448700920,0.754,1088.8,1087.7,0.61691125]
[1759448701726,0.754,1088.8,1087.5,0.61691125]
[1759448702023,0.754,1088.8,1087.6,0.61691125]
[1759448704223,0.754,1088.8,1086.3,2.02539801]
[1759448704224,0.754,1088.8,1087.5,0.61691125]
[1759448704429,0.754,1088.8,1087.3,0.61691125]
[1759448704627,0.754,1088.8,1087.4,0.61691125]
[1759448704826,0.754,1088.8,1087.3,0.61691125]
[1759448706229,0.754,1088.8,1087.2,0.61691125]
[1759448706729,0.754,1088.8,1087.1,0.61691125]
[1759448709327,0.754,1088.8,1087.0,0.61691125]
[1759448710525,0.754,1088.8,1087.1,0.61691125]
[1759448711932,0.754,1088.8,1087.2,0.61691125]
[1759448712131,0.754,1088.8,1087.4,0.61691125]
[1759448713329,0.754,1088.8,1087.5,0.61691125]
[1759448713529,0.754,1088.8,1087.4,0.61691125]
[1759448716234,0.754,1088.8,1087.2,0.8101592]
[1759448716235,0.754,1088.8,1087.5,0.61691125]
[1759448716933,0.754,1088.8,1087.4,0.61691125]
[1759448717334,0.754,1088.8,1087.3,0.61691125]
[1759448721738,0.754,1088.8,1087.4,0.61691125]
[1759448723340,0.754,1088.8,1087.5,0.61691125]
[1759448724437,0.754,1088.8,1087.6,0.61691125]
[1759448729848,0.15982401,1089.3,1087.6,0.61691125]
[1759448730051,0.15982401,1089.3,1087.7,0.61691125]
[1759448732553,0.849,1089.2,1087.7,0.61691125]
[1759448741858,0.849,1089.2,1087.9,0.61691125]
[1759448745059,0.849,1089.2,1087.8,0.61691125]
[1759448748666,0.849,1089.2,1087.6,0.61691125]
[1759448749867,1.66954831,1089.2,1087.6,0.61691125]
[1759448750469,0.849,1089.2,1087.6,0.61691125]
[1759448750668,1.66954831,1089.2,1087.6,0.61691125]
[1759448750966,0.82054831,1089.1,1087.6,0.61691125]
[1759448751966,1.66954831,1089.2,1087.5,0.61691125]
[1759448752470,0.849,1089.2,1087.6,0.61691125]
[1759448752966,0.849,1089.2,1087.7,0.61691125]
[1759448753668,0.849,1089.2,1087.9,0.61691125]
[1759448753971,0.849,1089.2,1088.2,0.61691125]
[1759448755670,0.15982401,1089.3,1088.2,0.61691125]
[1759448757369,0.15982401,1089.3,1088.1,0.61691125]
[1759448758170,1.019,1089.2,1088.0,0.61691125]
[1759448758370,1.019,1089.2,1087.9,0.61691125]
[1759448763477,1.019,1089.2,1088.3,0.61691125]
[1759448763671,1.019,1089.2,1088.4,0.61691125]
[1759448763874,1.019,1089.2,1088.5,0.61691125]
[1759448766481,1.019,1089.2,1088.4,0.61691125]
[1759448767481,1.019,1089.2,1087.2,2.02539801]
[1759448767482,1.019,1089.2,1088.1,0.61691125]
[1759448767678,1.019,1089.2,1088.2,0.61691125]
[1759448767882,1.019,1089.2,1087.9,0.61691125]
[1759448768084,1.019,1089.2,1087.8,0.61691125]
[1759448771383,1.019,1089.2,1087.9,0.61691125]
[1759448771587,1.019,1089.2,1087.4,0.8101592]
[1759448771588,1.019,1089.2,1087.8,0.61691125]
[1759448771886,1.019,1089.2,1087.9,0.61691125]
[1759448772084,0.15977778,1089.6,1087.9,0.61691125]
[1759448775389,0.862,1089.5,1087.9,0.61691125]
[1759448775589,0.862,1089.5,1088.1,0.61691125]
[1759448781795,0.862,1089.5,1088.2,0.61691125]
[1759448782600,0.862,1089.5,1088.0,0.8101592]
[1759448782601,0.862,1089.5,1088.3,0.61691125]
[1759448782899,0.862,1089.5,1088.4,0.61691125]
[1759448783097,0.862,1089.5,1087.3,2.02539801]
[1759448783098,0.862,1089.5,1088.9,0.61691125]
[1759448783297,0.862,1089.5,1089.0,0.61691125]
[1759448783513,0.862,1089.5,1089.1,0.61691125]
[1759448784404,0.862,1089.5,1088.8,0.8101592]
[1759448784405,0.862,1089.5,1089.0,0.61691125]
[1759448784704,0.862,1089.5,1089.1,0.61691125]
[1759448786500,0.862,1089.5,1089.0,0.61691125]
[1759448787400,0.862,1089.5,1088.9,0.61691125]
[1759448787904,0.862,1089.5,1089.0,0.61691125]
[1759448788404,0.862,1089.5,1088.9,0.61691125]
[1759448788905,0.862,1089.5,1089.0,0.61691125]
[1759448789303,0.862,1089.5,1088.9,0.61691125]
[1759448791411,0.862,1089.5,1088.8,0.61691125]
[1759448794011,0.862,1089.5,1088.9,0.61691125]
[1759448794312,0.862,1089.5,1088.8,0.61691125]
[1759448795312,0.862,1089.5,1088.5,0.8101592]
[1759448795512,0.862,1089.5,1088.8,0.60855205]
[1759448800411,0.862,1089.5,1089.0,0.60855205]
[1759448803115,0.862,1089.5,1088.9,0.60855205]
[1759448807316,0.862,1089.5,1088.6,0.60855205]
[1759448807716,0.862,1089.5,1088.7,0.60855205]
[1759448810215,0.862,1089.5,1088.8,0.60855205]
[1759448818329,0.862,1089.5,1088.9,0.60855205]
[1759448819728,0.862,1089.5,1088.7,0.60855205]
[1759448819926,0.862,1089.5,1088.3,0.60855205]
[1759448820127,0.862,1089.5,1088.5,0.60855205]
[1759448820528,0.862,1089.5,1088.6,0.60855205]
[1759448822027,0.862,1089.5,1088.5,0.60855205]
[1759448822228,0.862,1089.5,1088.4,0.60855205]
[1759448823131,0.862,1089.5,1088.3,0.60855205]
[1759448827836,0.862,1089.5,1088.2,0.60855205]
[1759448829239,0.862,1089.5,1088.3,0.60855205]
[1759448830437,0.862,1089.5,1088.2,0.60855205]
[1759448830636,0.862,1089.5,1088.1,0.60855205]
[1759448831537,0.15963706,1090.9,1088.2,0.60855205]
[1759448834541,0.836,1090.8,1088.2,0.60855205]
[1759448840353,0.836,1090.8,1088.3,0.60855205]
[1759448845359,0.836,1090.8,1088.2,0.60855205]
[1759448846064,0.82054831,1090.6,1088.3,0.60855205]
[1759448846265,0.82054831,1090.3,1088.2,0.60855205]
[1759448846965,0.82054831,1090.4,1088.2,0.60855205]
[1759448849366,0.836,1090.8,1086.4,2.83555721]
[1759448849367,0.82054831,1090.5,1088.1,0.60855205]
[1759448850467,0.82054831,1090.5,1088.0,0.60855205]
[1759448850769,0.82054831,1090.4,1088.0,0.60855205]
[1759448851268,1.23082247,1090.7,1088.0,0.60855205]
[1759448851269,0.82054831,1090.5,1088.0,0.60855205]
[1759448851463,0.82054831,1090.3,1088.0,0.60855205]
[1759448851665,0.82054831,1090.3,1087.9,0.60855205]
[1759448853966,0.82054831,1090.2,1087.9,0.60855205]
[1759448854170,0.82054831,1090.0,1087.8,0.60855205]
[1759448854371,0.836,1090.8,1087.7,0.60855205]
[1759448854372,0.82054831,1090.1,1087.7,0.60855205]
[1759448855772,0.82054831,1090.2,1087.7,0.60855205]
[1759448857374,0.82054831,1090.3,1087.7,0.60855205]
[1759448858376,0.82054831,1090.4,1087.6,0.60855205]
[1759448859376,0.82054831,1090.5,1087.6,0.60855205]
[1759448859773,0.82054831,1090.5,1087.5,0.60855205]
[1759448863877,0.82054831,1090.4,1087.7,0.60855205]
[1759448864177,0.82054831,1090.7,1088.2,0.60855205]
[1759448864674,1.39045953,1090.9,1088.2,0.60855205]
[1759448864675,0.98018537,1090.9,1088.2,0.60855205]
[1759448864974,0.98018537,1090.9,1088.3,0.60855205]
[1759448865874,0.15963706,1090.9,1088.3,0.60855205]
[1759448866378,0.98018537,1090.9,1088.3,0.60855205]
[1759448866876,0.691,1090.8,1088.3,0.60855205]
[1759448867075,0.691,1090.8,1088.0,0.8101592]
[1759448867076,0.691,1090.8,1088.2,0.60855205]
[1759448869382,0.691,1090.8,1088.3,0.60855205]
[1759448874383,1.51154831,1090.8,1088.3,0.60855205]
[1759448875084,1.51154831,1090.8,1088.4,0.60855205]
[1759448876382,0.82054831,1090.7,1088.4,0.60855205]
[1759448876981,0.82054831,1090.6,1088.5,0.60855205]
[1759448877480,0.82054831,1090.5,1088.5,0.60855205]
[1759448877880,0.82054831,1090.6,1088.5,0.60855205]
[1759448878481,0.82054831,1090.5,1088.5,0.60855205]
[1759448879183,0.82054831,1090.6,1088.5,0.60855205]
[1759448879388,0.82054831,1090.5,1088.5,0.60855205]
[1759448881987,0.82054831,1090.5,1088.4,0.60855205]
[1759448882187,0.82054831,1090.4,1088.4,0.60855205]
[1759448882684,0.82054831,1090.2,1088.4,0.60855205]
[1759448889886,0.82054831,1090.0,1088.4,0.60855205]
[1759448890092,0.82054831,1090.1,1088.5,0.60855205]
[1759448891092,1.041,1090.0,1088.5,0.60855205]
[1759448891392,1.86154831,1090.0,1088.4,0.60855205]
[1759448891892,1.041,1090.0,1088.5,0.60855205]
[1759448892492,1.86154831,1090.0,1088.5,0.60855205]
[1759448893188,1.041,1090.0,1088.4,0.60855205]
[1759448901095,1.041,1090.0,1088.9,0.60855205]
[1759448901295,1.041,1090.0,1089.0,0.60855205]
[1759448901592,1.041,1090.0,1089.1,0.60855205]
[1759448901795,1.041,1090.0,1089.2,0.60855205]
[1759448904392,1.041,1090.0,1089.1,0.60855205]
[1759448905895,1.041,1090.0,1089.0,0.60855205]
[1759448908307,1.041,1090.0,1088.9,0.60855205]
[1759448909204,0.15963706,1090.9,1088.9,0.60855205]
[1759448912003,0.875,1090.8,1088.9,0.60855205]
[1759448912608,0.875,1090.8,1088.9,0.61275682]
[1759448913906,0.875,1090.8,1089.0,0.61275682]
[1759448914109,0.875,1090.8,1088.9,0.61275682]
[1759448915911,0.875,1090.8,1088.8,0.61275682]
[1759448917708,1.69554831,1090.8,1088.8,0.61275682]
[1759448918112,0.875,1090.8,1088.8,0.61275682]
[1759448918313,1.69554831,1090.8,1088.8,0.61275682]
[1759448923115,0.82054831,1090.8,1088.8,0.61275682]
[1759448923314,0.82054831,1090.8,1088.9,0.61275682]
[1759448926018,1.038,1090.7,1088.9,0.61275682]
[1759448926715,1.038,1090.7,1088.8,0.61275682]
[1759448926918,1.038,1090.7,1088.9,0.61275682]
[1759448927714,1.038,1090.7,1088.8,0.61275682]
[1759448927919,1.038,1090.7,1088.9,0.61275682]
[1759448928313,1.038,1090.7,1088.8,0.61275682]
[1759448940734,1.038,1090.7,1088.9,0.61275682]
[1759448941231,1.038,1090.7,1088.6,0.8101592]
[1759448941232,1.038,1090.7,1088.8,0.61275682]
[1759448948235,0.98018537,1090.9,1088.8,0.61275682]
[1759448948540,0.82054831,1090.8,1088.7,0.61275682]
[1759448950037,0.82054831,1090.8,1088.8,0.61275682]
[1759448950538,0.82054831,1090.7,1088.8,0.61275682]